[Event "*** Titled Tuesday Blitz"]
[Site "Chess.com"]
[Date "2018.06.05"]
[Round "4"]
[White "Mbneu"]
[Black "Vamostodorecto"]
[Result "0-1"]
[WhiteElo "2191"]
[BlackElo "2355"]
[TimeControl "180+2"]
[EndTime "13:53:01 PDT"]
[Termination "Vamostodorecto won by resignation"]

1. d4 {[%clk 0:03:01.9]} 1... d5 {[%clk 0:03:00.2]} 2. c4 {[%clk 0:03:02.8]}
2... dxc4 {[%clk 0:03:02.1]} 3. Nf3 {[%clk 0:03:02.9]} 3... Nf6 {[%clk
0:03:02.5]} 4. Nc3 {[%clk 0:03:03.4]} 4... a6 {[%clk 0:02:54.6]} 5. e4 {[%clk
0:03:03.3]} 5... b5 {[%clk 0:02:53.9]} 6. e5 {[%clk 0:03:04.3]} 6... Nd5 {[%clk
0:02:53]} 7. Ne4 {[%clk 0:03:04.5]} 7... e6 {[%clk 0:02:52.5]} 8. Be2 {[%clk
0:03:04.3]} 8... Bb4+ {[%clk 0:02:51.7]} 9. Bd2 {[%clk 0:03:04.1]} 9... O-O
{[%clk 0:02:46.9]} 10. O-O {[%clk 0:03:02.6]} 10... Nd7 {[%clk 0:02:40]} 11.
Bxb4 {[%clk 0:03:00.7]} 11... Nxb4 {[%clk 0:02:39.9]} 12. b3 {[%clk 0:03:02.3]}
12... Bb7 {[%clk 0:02:39.1]} 13. Nfd2 {[%clk 0:02:43.9]} 13... Nd3 {[%clk
0:02:29.8]} 14. bxc4 {[%clk 0:02:39.3]} 14... bxc4 {[%clk 0:02:29.5]} 15. Nc3
{[%clk 0:02:22.9]} 15... Nb6 {[%clk 0:02:25.8]} 16. Nf3 {[%clk 0:02:21.2]} 16...
Bxf3 {[%clk 0:02:21.8]} 17. Bxf3 {[%clk 0:02:20.7]} 17... Qxd4 {[%clk
0:02:20.7]} 18. Bxa8 {[%clk 0:02:20]} 18... Rxa8 {[%clk 0:02:18.8]} 19. Qf3
{[%clk 0:02:04.3]} 19... Qxc3 {[%clk 0:02:15.8]} 20. Rac1 {[%clk 0:01:56.7]}
20... Nxc1 {[%clk 0:02:12.5]} 0-1

[Event "*** Titled Tuesday Blitz"]
[Site "Chess.com"]
[Date "2018.06.05"]
[Round "4"]
[White "maciek_92"]
[Black "kuli4ik"]
[Result "0-1"]
[WhiteElo "2619"]
[BlackElo "2689"]
[TimeControl "180+2"]
[EndTime "13:53:07 PDT"]
[Termination "kuli4ik won by resignation"]

1. d4 {[%clk 0:03:01.9]} 1... d5 {[%clk 0:03:00.6]} 2. c4 {[%clk 0:03:02.9]}
2... c6 {[%clk 0:03:02]} 3. Nc3 {[%clk 0:03:03.7]} 3... dxc4 {[%clk 0:03:03.1]}
4. a4 {[%clk 0:03:02.8]} 4... e5 {[%clk 0:03:03.5]} 5. Nf3 {[%clk 0:02:43.5]}
5... exd4 {[%clk 0:03:02.2]} 6. Nxd4 {[%clk 0:02:45.4]} 6... Nd7 {[%clk
0:03:03.6]} 7. e4 {[%clk 0:02:43.3]} 7... Ne5 {[%clk 0:03:04.6]} 8. Be2 {[%clk
0:02:38]} 8... Nd3+ {[%clk 0:03:05.1]} 9. Bxd3 {[%clk 0:02:35.3]} 9... cxd3
{[%clk 0:03:07]} 10. Be3 {[%clk 0:02:31.5]} 10... Nf6 {[%clk 0:03:03.9]} 11. O-O
{[%clk 0:02:28.8]} 11... Ng4 {[%clk 0:03:00.4]} 12. Qf3 {[%clk 0:02:10.9]} 12...
Bd6 {[%clk 0:02:31.8]} 13. g3 {[%clk 0:01:48.2]} 13... Nxe3 {[%clk 0:02:28.4]}
14. Qxe3 {[%clk 0:01:41.1]} 14... Bc5 {[%clk 0:02:28.2]} 15. Ne6 {[%clk
0:01:22.7]} 15... Bxe3 {[%clk 0:02:23.2]} 16. Nxd8 {[%clk 0:01:22.8]} 16... Bd4
{[%clk 0:02:23.9]} 0-1

[Event "*** Titled Tuesday Blitz"]
[Site "Chess.com"]
[Date "2018.06.05"]
[Round "4"]
[White "rasmussvane"]
[Black "gammagramma"]
[Result "1-0"]
[WhiteElo "2581"]
[BlackElo "2505"]
[TimeControl "180+2"]
[EndTime "13:53:49 PDT"]
[Termination "rasmussvane won by resignation"]

1. Nf3 {[%clk 0:03:01.9]} 1... d5 {[%clk 0:02:50]} 2. d4 {[%clk 0:03:02.6]} 2...
c6 {[%clk 0:02:51.9]} 3. c4 {[%clk 0:03:03.5]} 3... Nf6 {[%clk 0:02:53.4]} 4.
Nbd2 {[%clk 0:03:05]} 4... Bf5 {[%clk 0:02:53.9]} 5. Nh4 {[%clk 0:03:04.2]} 5...
Bc8 {[%clk 0:02:53.8]} 6. e3 {[%clk 0:03:04]} 6... g6 {[%clk 0:02:54.4]} 7. b3
{[%clk 0:03:02.5]} 7... Bg7 {[%clk 0:02:55.4]} 8. Bb2 {[%clk 0:03:04]} 8... O-O
{[%clk 0:02:54.3]} 9. Be2 {[%clk 0:03:05.3]} 9... a6 {[%clk 0:02:52.3]} 10. O-O
{[%clk 0:03:05.4]} 10... b5 {[%clk 0:02:53.8]} 11. Qc2 {[%clk 0:03:02.7]} 11...
Nbd7 {[%clk 0:02:49.4]} 12. Rfd1 {[%clk 0:02:59.7]} 12... Bb7 {[%clk 0:02:42.4]}
13. Rac1 {[%clk 0:02:48.7]} 13... bxc4 {[%clk 0:02:36.9]} 14. bxc4 {[%clk
0:02:39.9]} 14... a5 {[%clk 0:02:36.5]} 15. Nhf3 {[%clk 0:02:32.8]} 15... Ba6
{[%clk 0:02:34.2]} 16. Bf1 {[%clk 0:02:25.6]} 16... e6 {[%clk 0:02:32]} 17. Rb1
{[%clk 0:02:21.3]} 17... Rb8 {[%clk 0:02:29]} 18. Bc3 {[%clk 0:02:20.6]} 18...
Qc7 {[%clk 0:02:28.7]} 19. Qa4 {[%clk 0:02:20]} 19... Ra8 {[%clk 0:02:16.5]} 20.
Qxa5 {[%clk 0:02:13]} 20... Qxa5 {[%clk 0:02:08.3]} 21. Bxa5 {[%clk 0:02:12.6]}
21... Bxc4 {[%clk 0:02:09.1]} 22. Nxc4 {[%clk 0:02:13]} 22... dxc4 {[%clk
0:02:10.5]} 23. Bb4 {[%clk 0:02:14.6]} 23... Rfb8 {[%clk 0:02:11]} 24. Bxc4
{[%clk 0:02:14.4]} 24... Nd5 {[%clk 0:02:11.9]} 25. Bd2 {[%clk 0:02:09.9]} 25...
Rxb1 {[%clk 0:02:01.9]} 26. Rxb1 {[%clk 0:02:09.5]} 26... N7b6 {[%clk
0:02:03.1]} 27. Bb3 {[%clk 0:02:01.9]} 27... f5 {[%clk 0:02:01.5]} 28. Rc1
{[%clk 0:02:01.8]} 28... Rc8 {[%clk 0:02:00.6]} 29. Ba5 {[%clk 0:02:01.8]} 29...
Kf7 {[%clk 0:01:59.9]} 30. Bxb6 {[%clk 0:02:01.4]} 30... Nxb6 {[%clk 0:02:00.9]}
31. Ng5+ {[%clk 0:02:02.9]} 1-0

[Event "*** Titled Tuesday Blitz"]
[Site "Chess.com"]
[Date "2018.06.05"]
[Round "4"]
[White "guillembaches"]
[Black "lucasmito"]
[Result "1-0"]
[WhiteElo "2233"]
[BlackElo "2310"]
[TimeControl "180+2"]
[EndTime "13:53:54 PDT"]
[Termination "guillembaches won by resignation"]

1. d4 {[%clk 0:03:01]} 1... Nf6 {[%clk 0:02:59.3]} 2. Bf4 {[%clk 0:03:01.4]}
2... g6 {[%clk 0:02:57.9]} 3. Nc3 {[%clk 0:03:01.7]} 3... d5 {[%clk 0:02:51.1]}
4. e3 {[%clk 0:03:02]} 4... Bg7 {[%clk 0:02:51]} 5. h4 {[%clk 0:03:02.7]} 5...
c5 {[%clk 0:02:48]} 6. h5 {[%clk 0:02:58.7]} 6... cxd4 {[%clk 0:02:43]} 7. exd4
{[%clk 0:02:57.9]} 7... O-O {[%clk 0:02:43.4]} 8. hxg6 {[%clk 0:02:47.3]} 8...
fxg6 {[%clk 0:02:44.1]} 9. Nf3 {[%clk 0:02:33.3]} 9... Nc6 {[%clk 0:02:44.4]}
10. Bh6 {[%clk 0:02:25.1]} 10... Bxh6 {[%clk 0:02:39.1]} 11. Rxh6 {[%clk
0:02:25.1]} 11... Bf5 {[%clk 0:02:36.6]} 12. Bd3 {[%clk 0:02:11]} 12... Bxd3
{[%clk 0:02:06.3]} 13. Qxd3 {[%clk 0:02:08.3]} 13... Rc8 {[%clk 0:01:57.6]} 14.
Rxg6+ {[%clk 0:01:54.2]} 14... hxg6 {[%clk 0:01:56.4]} 15. Qxg6+ {[%clk
0:01:53.7]} 15... Kh8 {[%clk 0:01:57.8]} 16. O-O-O {[%clk 0:01:46.4]} 16... Nh7
{[%clk 0:01:36.2]} 17. Rh1 {[%clk 0:01:39.4]} 17... Rf7 {[%clk 0:01:37.2]} 18.
Ng5 {[%clk 0:01:27.2]} 1-0

[Event "*** Titled Tuesday Blitz"]
[Site "Chess.com"]
[Date "2018.06.05"]
[Round "4"]
[White "AndrewDGreen"]
[Black "leoo2001"]
[Result "0-1"]
[WhiteElo "2191"]
[BlackElo "2244"]
[TimeControl "180+2"]
[EndTime "13:54:24 PDT"]
[Termination "leoo2001 won by resignation"]

1. d4 {[%clk 0:03:01.9]} 1... Nf6 {[%clk 0:02:57.8]} 2. Nf3 {[%clk 0:03:02.8]}
2... e6 {[%clk 0:02:59]} 3. Bf4 {[%clk 0:03:03.4]} 3... b6 {[%clk 0:02:59.6]} 4.
e3 {[%clk 0:03:03.3]} 4... Bb7 {[%clk 0:03:00.1]} 5. Nbd2 {[%clk 0:03:04.4]}
5... Be7 {[%clk 0:03:01.2]} 6. h3 {[%clk 0:03:05.2]} 6... c5 {[%clk 0:03:02.6]}
7. c3 {[%clk 0:02:54.8]} 7... O-O {[%clk 0:03:03.1]} 8. Bd3 {[%clk 0:02:55.5]}
8... d6 {[%clk 0:02:59.5]} 9. O-O {[%clk 0:02:54.1]} 9... Nbd7 {[%clk
0:02:59.7]} 10. Bh2 {[%clk 0:02:51.5]} 10... cxd4 {[%clk 0:03:00.4]} 11. exd4
{[%clk 0:02:52.3]} 11... a6 {[%clk 0:03:01.6]} 12. a4 {[%clk 0:02:52.8]} 12...
Qc7 {[%clk 0:03:02.5]} 13. Qe2 {[%clk 0:02:53.2]} 13... Rfe8 {[%clk 0:03:02.8]}
14. Rfe1 {[%clk 0:02:53.1]} 14... Bf8 {[%clk 0:03:03.8]} 15. Nc4 {[%clk
0:02:45.9]} 15... Rac8 {[%clk 0:02:50.5]} 16. Qe3 {[%clk 0:02:19.9]} 16... Nd5
{[%clk 0:02:41.6]} 17. Qg5 {[%clk 0:02:19.2]} 17... N7f6 {[%clk 0:02:39.3]} 18.
Re2 {[%clk 0:01:54.4]} 18... h6 {[%clk 0:02:37.4]} 19. Qh4 {[%clk 0:01:55]}
19... b5 {[%clk 0:02:34.6]} 20. axb5 {[%clk 0:01:55.3]} 20... axb5 {[%clk
0:02:36]} 21. Na5 {[%clk 0:01:34.5]} 21... Ra8 {[%clk 0:02:33.1]} 22. b4 {[%clk
0:01:28.5]} 22... Qxc3 {[%clk 0:02:31]} 23. Rd1 {[%clk 0:01:17.4]} 23... Ba6
{[%clk 0:02:28.9]} 24. g4 {[%clk 0:00:59.3]} 24... Nxb4 {[%clk 0:02:14.9]} 25.
Bb1 {[%clk 0:00:54.5]} 25... Qxf3 {[%clk 0:02:12.8]} 0-1

[Event "*** Titled Tuesday Blitz"]
[Site "Chess.com"]
[Date "2018.06.05"]
[Round "4"]
[White "littleplotkin"]
[Black "EndgameGrinder"]
[Result "1-0"]
[WhiteElo "2406"]
[BlackElo "2514"]
[TimeControl "180+2"]
[EndTime "13:54:52 PDT"]
[Termination "littleplotkin won by resignation"]

1. e4 {[%clk 0:03:01.9]} 1... c5 {[%clk 0:03:01.1]} 2. d4 {[%clk 0:03:02.6]}
2... cxd4 {[%clk 0:03:01.8]} 3. c3 {[%clk 0:03:04.2]} 3... Nf6 {[%clk
0:03:03.4]} 4. e5 {[%clk 0:03:04.4]} 4... Nd5 {[%clk 0:03:04.8]} 5. Nf3 {[%clk
0:03:06.3]} 5... d6 {[%clk 0:03:05.6]} 6. Bd3 {[%clk 0:03:07.3]} 6... Nc6 {[%clk
0:02:51.2]} 7. exd6 {[%clk 0:03:04.7]} 7... e6 {[%clk 0:02:48]} 8. cxd4 {[%clk
0:03:02.1]} 8... Bxd6 {[%clk 0:02:48.6]} 9. Nc3 {[%clk 0:03:03.6]} 9... Nxc3
{[%clk 0:02:42.1]} 10. bxc3 {[%clk 0:03:05.4]} 10... O-O {[%clk 0:02:43.3]} 11.
Bxh7+ {[%clk 0:03:04.4]} 11... Kxh7 {[%clk 0:02:44.3]} 12. Ng5+ {[%clk
0:03:05.9]} 12... Kg6 {[%clk 0:02:30.9]} 13. h4 {[%clk 0:02:52.9]} 13... f5
{[%clk 0:02:16.2]} 14. h5+ {[%clk 0:02:01.9]} 14... Kf6 {[%clk 0:02:16.2]} 15.
h6 {[%clk 0:02:03.8]} 15... Rh8 {[%clk 0:01:05.5]} 16. Qh5 {[%clk 0:01:42.9]}
16... Qe8 {[%clk 0:00:56.3]} 17. Nh7+ {[%clk 0:01:43.3]} 17... Ke7 {[%clk
0:00:50.8]} 18. Qg5+ {[%clk 0:01:41.3]} 18... Kd7 {[%clk 0:00:39.5]} 19. hxg7
{[%clk 0:01:41.5]} 19... Rxh7 {[%clk 0:00:32.2]} 20. Rxh7 {[%clk 0:01:43.4]}
20... Ne7 {[%clk 0:00:32.1]} 21. g8=Q {[%clk 0:01:44]} 1-0

[Event "*** Titled Tuesday Blitz"]
[Site "Chess.com"]
[Date "2018.06.05"]
[Round "4"]
[White "RichardABates"]
[Black "GhostOfGreenval"]
[Result "1-0"]
[WhiteElo "2339"]
[BlackElo "2436"]
[TimeControl "180+2"]
[EndTime "13:55:19 PDT"]
[Termination "RichardABates won by resignation"]

1. d4 {[%clk 0:00:37]} 1... g6 {[%clk 0:02:59.4]} 2. Nf3 {[%clk 0:00:37.6]} 2...
Bg7 {[%clk 0:03:00.8]} 3. g3 {[%clk 0:00:38.7]} 3... Nf6 {[%clk 0:03:02.2]} 4.
Bg2 {[%clk 0:00:40.1]} 4... O-O {[%clk 0:03:03.8]} 5. O-O {[%clk 0:00:41.6]}
5... c5 {[%clk 0:03:04.7]} 6. c3 {[%clk 0:00:42]} 6... cxd4 {[%clk 0:03:02.9]}
7. cxd4 {[%clk 0:00:42.5]} 7... d5 {[%clk 0:03:04.8]} 8. Nc3 {[%clk 0:00:43.1]}
8... Ne4 {[%clk 0:03:06.2]} 9. Nxe4 {[%clk 0:00:43.9]} 9... dxe4 {[%clk
0:03:07.1]} 10. Ne5 {[%clk 0:00:45.4]} 10... Nc6 {[%clk 0:02:48]} 11. Nxc6
{[%clk 0:00:44]} 11... bxc6 {[%clk 0:02:48.8]} 12. Bxe4 {[%clk 0:00:44.7]} 12...
Bxd4 {[%clk 0:02:50.3]} 13. Bxc6 {[%clk 0:00:41.5]} 13... Bh3 {[%clk 0:02:45.7]}
14. Bh6 {[%clk 0:00:35]} 14... Bxf1 {[%clk 0:01:54.3]} 15. Qxf1 {[%clk
0:00:35.6]} 15... Rc8 {[%clk 0:01:45.7]} 16. Bxf8 {[%clk 0:00:29.8]} 16... Rxc6
{[%clk 0:01:45.3]} 17. Bh6 {[%clk 0:00:29.9]} 17... Bxb2 {[%clk 0:01:45]} 18.
Rd1 {[%clk 0:00:29.9]} 18... Qc7 {[%clk 0:01:39.3]} 19. Qg2 {[%clk 0:00:29.6]}
19... Bg7 {[%clk 0:01:21.5]} 20. Qxc6 {[%clk 0:00:29.5]} 1-0

[Event "*** Titled Tuesday Blitz"]
[Site "Chess.com"]
[Date "2018.06.05"]
[Round "4"]
[White "ChessicallyInclined"]
[Black "Karina_Oparina"]
[Result "1-0"]
[WhiteElo "2237"]
[BlackElo "2179"]
[TimeControl "180+2"]
[EndTime "13:55:22 PDT"]
[Termination "ChessicallyInclined won by resignation"]

1. d4 {[%clk 0:03:01.9]} 1... Nf6 {[%clk 0:03:00.3]} 2. c4 {[%clk 0:03:03.1]}
2... e6 {[%clk 0:03:00.6]} 3. Nc3 {[%clk 0:03:04.3]} 3... Bb4 {[%clk 0:02:58.9]}
4. e3 {[%clk 0:03:05.2]} 4... b6 {[%clk 0:02:56.1]} 5. Ne2 {[%clk 0:03:04.6]}
5... Bb7 {[%clk 0:02:55.7]} 6. a3 {[%clk 0:03:04.7]} 6... Bxc3+ {[%clk
0:02:44.2]} 7. Nxc3 {[%clk 0:03:06.6]} 7... O-O {[%clk 0:02:42.2]} 8. Bd3 {[%clk
0:03:00.9]} 8... Bxg2 {[%clk 0:02:39.3]} 9. Rg1 {[%clk 0:03:01.3]} 9... Bb7
{[%clk 0:02:39.1]} 10. e4 {[%clk 0:03:02.7]} 10... d6 {[%clk 0:02:34.1]} 11. Bh6
{[%clk 0:02:56.6]} 11... Ne8 {[%clk 0:02:09.7]} 12. Qh5 {[%clk 0:02:35.5]} 12...
Qf6 {[%clk 0:01:37.9]} 13. e5 {[%clk 0:02:21.1]} 13... Qg6 {[%clk 0:01:38.3]}
14. Bxg6 {[%clk 0:02:21.4]} 14... fxg6 {[%clk 0:01:38.5]} 15. Qh3 {[%clk
0:02:19.2]} 15... gxh6 {[%clk 0:01:35.8]} 16. Qxe6+ {[%clk 0:02:20.1]} 16... Kg7
{[%clk 0:01:34]} 17. Qe7+ {[%clk 0:02:19.6]} 17... Rf7 {[%clk 0:01:21.8]} 18.
Qxe8 {[%clk 0:02:19.7]} 18... Nd7 {[%clk 0:01:21.8]} 19. Qe6 {[%clk 0:02:15.2]}
19... dxe5 {[%clk 0:01:17.2]} 20. O-O-O {[%clk 0:02:13.5]} 20... exd4 {[%clk
0:01:16.1]} 21. Rxd4 {[%clk 0:02:15.4]} 21... Nc5 {[%clk 0:01:15.9]} 22. Qe5+
{[%clk 0:02:16]} 22... Kg8 {[%clk 0:01:14.6]} 23. Kb1 {[%clk 0:02:09.9]} 23...
Raf8 {[%clk 0:01:07.8]} 24. f4 {[%clk 0:02:00.6]} 24... Nb3 {[%clk 0:00:59.8]}
25. Rd3 {[%clk 0:01:56.1]} 25... Nc5 {[%clk 0:00:59.2]} 26. Rdg3 {[%clk
0:01:55.9]} 26... Rf6 {[%clk 0:00:48.2]} 27. f5 {[%clk 0:01:51.9]} 27... Rxf5
{[%clk 0:00:32.9]} 28. Rxg6+ {[%clk 0:01:52.8]} 28... hxg6 {[%clk 0:00:33.4]}
29. Rxg6+ {[%clk 0:01:54.7]} 1-0

[Event "*** Titled Tuesday Blitz"]
[Site "Chess.com"]
[Date "2018.06.05"]
[Round "4"]
[White "GoingKronos"]
[Black "ruvat"]
[Result "1-0"]
[WhiteElo "2335"]
[BlackElo "2265"]
[TimeControl "180+2"]
[EndTime "13:55:26 PDT"]
[Termination "GoingKronos won by resignation"]

1. Nf3 {[%clk 0:03:01.9]} 1... d6 {[%clk 0:03:00.5]} 2. d4 {[%clk 0:03:02.1]}
2... g6 {[%clk 0:03:01.5]} 3. e4 {[%clk 0:03:02.5]} 3... Bg7 {[%clk 0:03:03]} 4.
Bc4 {[%clk 0:03:03.5]} 4... Nf6 {[%clk 0:03:04.1]} 5. Qe2 {[%clk 0:03:03.7]}
5... O-O {[%clk 0:02:51.3]} 6. e5 {[%clk 0:03:04.3]} 6... dxe5 {[%clk
0:02:51.1]} 7. dxe5 {[%clk 0:03:05.1]} 7... Nd5 {[%clk 0:02:51.2]} 8. O-O {[%clk
0:03:04.9]} 8... Nc6 {[%clk 0:02:40.3]} 9. Rd1 {[%clk 0:02:50.9]} 9... e6 {[%clk
0:02:35.5]} 10. Bg5 {[%clk 0:02:38.6]} 10... f6 {[%clk 0:02:33.4]} 11. exf6
{[%clk 0:02:35.9]} 11... Bxf6 {[%clk 0:02:30.9]} 12. h4 {[%clk 0:02:21.3]} 12...
Nce7 {[%clk 0:02:09.2]} 13. Nc3 {[%clk 0:02:19.2]} 13... c6 {[%clk 0:02:07]} 14.
Ne4 {[%clk 0:02:06.5]} 14... Bxg5 {[%clk 0:01:47.1]} 15. hxg5 {[%clk 0:02:05.6]}
15... Qc7 {[%clk 0:01:41.3]} 16. Bxd5 {[%clk 0:01:50.6]} 16... exd5 {[%clk
0:01:26.7]} 17. Nf6+ {[%clk 0:01:51]} 17... Kg7 {[%clk 0:01:26.7]} 18. Re1
{[%clk 0:01:38.1]} 18... Ng8 {[%clk 0:01:23]} 19. Ne8+ {[%clk 0:01:34.9]} 19...
Rxe8 {[%clk 0:01:21.5]} 20. Qxe8 {[%clk 0:01:35.7]} 20... b6 {[%clk 0:01:17.7]}
21. Re3 {[%clk 0:01:07]} 21... Qd7 {[%clk 0:01:10]} 22. Rae1 {[%clk 0:01:04.3]}
22... Qxe8 {[%clk 0:01:06.2]} 23. Rxe8 {[%clk 0:01:05.3]} 23... Bb7 {[%clk
0:01:06.9]} 24. Rxa8 {[%clk 0:01:05.9]} 24... Bxa8 {[%clk 0:01:07.8]} 25. Re8
{[%clk 0:01:03.3]} 25... Bb7 {[%clk 0:01:08.1]} 26. Rb8 {[%clk 0:01:03]} 26...
Ba6 {[%clk 0:01:07.3]} 27. Ra8 {[%clk 0:01:04]} 1-0

[Event "*** Titled Tuesday Blitz"]
[Site "Chess.com"]
[Date "2018.06.05"]
[Round "4"]
[White "nochewycandy"]
[Black "MateusViageiro"]
[Result "0-1"]
[WhiteElo "2087"]
[BlackElo "2174"]
[TimeControl "180+2"]
[EndTime "13:55:39 PDT"]
[Termination "MateusViageiro won by resignation"]

1. e4 {[%clk 0:03:01.9]} 1... c5 {[%clk 0:02:59.3]} 2. Nf3 {[%clk 0:03:02.9]}
2... d6 {[%clk 0:03:00.1]} 3. Bb5+ {[%clk 0:03:04.4]} 3... Nd7 {[%clk
0:02:59.7]} 4. O-O {[%clk 0:03:05.3]} 4... a6 {[%clk 0:03:00.8]} 5. Bd3 {[%clk
0:03:05.5]} 5... Ngf6 {[%clk 0:03:00.6]} 6. c4 {[%clk 0:03:06.5]} 6... e6 {[%clk
0:03:01.4]} 7. Nc3 {[%clk 0:03:06.9]} 7... Be7 {[%clk 0:03:02.3]} 8. Bc2 {[%clk
0:03:07.9]} 8... O-O {[%clk 0:03:02.8]} 9. d4 {[%clk 0:03:09]} 9... cxd4 {[%clk
0:03:03.1]} 10. Nxd4 {[%clk 0:03:10.9]} 10... Qc7 {[%clk 0:03:04]} 11. Qe2
{[%clk 0:03:08.6]} 11... Ne5 {[%clk 0:03:04.2]} 12. b3 {[%clk 0:03:08.6]} 12...
Bd7 {[%clk 0:03:04.4]} 13. Bb2 {[%clk 0:02:59.4]} 13... Qc5 {[%clk 0:02:58.1]}
14. Rfd1 {[%clk 0:02:57.4]} 14... Rab8 {[%clk 0:02:54.3]} 15. f4 {[%clk
0:02:47.3]} 15... Nc6 {[%clk 0:02:54.4]} 16. Na4 {[%clk 0:02:47.3]} 16... Qa7
{[%clk 0:02:54.6]} 17. Kh1 {[%clk 0:02:48.4]} 17... b5 {[%clk 0:02:51]} 18. cxb5
{[%clk 0:02:48.2]} 18... axb5 {[%clk 0:02:46.4]} 19. Nxb5 {[%clk 0:02:38.7]}
19... Qa6 {[%clk 0:02:46.4]} 20. Bd3 {[%clk 0:02:35.2]} 20... Nb4 {[%clk
0:02:47.2]} 21. Nbc3 {[%clk 0:02:33.7]} 21... Nxd3 {[%clk 0:02:43.9]} 22. Qxd3
{[%clk 0:02:34.8]} 22... Qxd3 {[%clk 0:02:40.2]} 23. Rxd3 {[%clk 0:02:36.7]}
23... Bxa4 {[%clk 0:02:41]} 24. Nxa4 {[%clk 0:02:37.8]} 24... Nxe4 {[%clk
0:02:41.9]} 25. Kg1 {[%clk 0:02:28.1]} 25... d5 {[%clk 0:02:41.2]} 26. Bd4
{[%clk 0:02:27.6]} 26... Rfc8 {[%clk 0:02:41.7]} 27. Rdd1 {[%clk 0:02:16.8]}
27... Rc2 {[%clk 0:02:36.7]} 28. Rdc1 {[%clk 0:02:17.4]} 28... Rbc8 {[%clk
0:02:31.5]} 29. Rxc2 {[%clk 0:01:43.5]} 29... Rxc2 {[%clk 0:02:31.4]} 30. Nb2
{[%clk 0:01:44.5]} 30... f6 {[%clk 0:02:30.8]} 31. Nd3 {[%clk 0:01:44.8]} 31...
Rd2 {[%clk 0:02:29.5]} 32. Bf2 {[%clk 0:01:23]} 32... Rxd3 {[%clk 0:02:28.3]}
33. a4 {[%clk 0:01:24.2]} 33... Rxb3 {[%clk 0:02:27.3]} 34. a5 {[%clk
0:01:24.5]} 34... Nxf2 {[%clk 0:02:21.6]} 35. Kxf2 {[%clk 0:01:26.4]} 35... Rb8
{[%clk 0:02:23]} 36. a6 {[%clk 0:01:25.9]} 36... Kf8 {[%clk 0:02:19.4]} 37. Ke3
{[%clk 0:01:25.7]} 37... Bc5+ {[%clk 0:02:19.1]} 38. Kd3 {[%clk 0:01:27.1]}
38... Ke7 {[%clk 0:02:16]} 39. Ra5 {[%clk 0:01:23.4]} 39... Kd6 {[%clk
0:02:15.1]} 40. g4 {[%clk 0:01:22.5]} 40... e5 {[%clk 0:02:15.5]} 41. fxe5+
{[%clk 0:01:20.1]} 41... fxe5 {[%clk 0:02:16.6]} 42. a7 {[%clk 0:01:22]} 42...
Ra8 {[%clk 0:02:16.5]} 43. Ra6+ {[%clk 0:01:23]} 43... Kc7 {[%clk 0:02:17.6]}
44. Ra5 {[%clk 0:01:22.2]} 44... Kb6 {[%clk 0:02:18.3]} 45. Rxc5 {[%clk
0:01:20.2]} 45... Kxc5 {[%clk 0:02:17.1]} 0-1

[Event "*** Titled Tuesday Blitz"]
[Site "Chess.com"]
[Date "2018.06.05"]
[Round "4"]
[White "ChainsOfFantasia"]
[Black "PrinceMurad09"]
[Result "0-1"]
[WhiteElo "2412"]
[BlackElo "2415"]
[TimeControl "180+2"]
[EndTime "13:55:41 PDT"]
[Termination "PrinceMurad09 won by resignation"]

1. d4 {[%clk 0:03:01.9]} 1... Nf6 {[%clk 0:02:50.6]} 2. Nf3 {[%clk 0:03:01.3]}
2... g6 {[%clk 0:02:50.7]} 3. c4 {[%clk 0:03:02.4]} 3... Bg7 {[%clk 0:02:49.5]}
4. Nc3 {[%clk 0:03:04.3]} 4... d6 {[%clk 0:02:49.1]} 5. e4 {[%clk 0:02:55.1]}
5... O-O {[%clk 0:02:49.5]} 6. Be2 {[%clk 0:02:57]} 6... e5 {[%clk 0:02:49.8]}
7. O-O {[%clk 0:02:56.2]} 7... Nc6 {[%clk 0:02:47.7]} 8. dxe5 {[%clk 0:02:53.9]}
8... Nxe5 {[%clk 0:02:41.7]} 9. Nxe5 {[%clk 0:02:48.6]} 9... dxe5 {[%clk
0:02:43.6]} 10. b4 {[%clk 0:02:50.1]} 10... c6 {[%clk 0:02:30.6]} 11. Qb3 {[%clk
0:02:43.4]} 11... Be6 {[%clk 0:02:26.5]} 12. Ba3 {[%clk 0:02:44.4]} 12... Qc7
{[%clk 0:02:10.2]} 13. b5 {[%clk 0:02:44.7]} 13... Rfd8 {[%clk 0:02:07.9]} 14.
Rfd1 {[%clk 0:02:39.5]} 14... Bf8 {[%clk 0:02:00.6]} 15. Bxf8 {[%clk 0:02:30.1]}
15... Kxf8 {[%clk 0:02:02]} 16. Na4 {[%clk 0:02:30.9]} 16... Nxe4 {[%clk
0:01:54.2]} 17. Qe3 {[%clk 0:02:26.3]} 17... f5 {[%clk 0:01:16.1]} 18. Nc5
{[%clk 0:01:58.5]} 18... Nxc5 {[%clk 0:01:13.4]} 19. Qxc5+ {[%clk 0:01:55.4]}
19... Kf7 {[%clk 0:01:15.3]} 20. bxc6 {[%clk 0:01:51.8]} 20... bxc6 {[%clk
0:01:14]} 21. h4 {[%clk 0:01:31.4]} 21... e4 {[%clk 0:01:09.8]} 22. h5 {[%clk
0:01:31.2]} 22... Qb6 {[%clk 0:01:04]} 23. Qe5 {[%clk 0:01:29.1]} 23... Qb8
{[%clk 0:00:54.1]} 24. Rxd8 {[%clk 0:01:21.1]} 24... Qxe5 {[%clk 0:00:53.6]} 25.
Rxa8 {[%clk 0:01:15.3]} 25... Qxa1+ {[%clk 0:00:54]} 26. Kh2 {[%clk 0:01:15.6]}
26... Qxa2 {[%clk 0:00:55.2]} 0-1